Cogmind - Beta 15 @@@ ROGUE MODE // 2025.05.29 @ 15:57:51 Player: Elias Result: Destroyed by S-10 Pest with Light Assault Rifle Performance ------------- Evolutions (2) 1000 Regions Visited (6) 1200 Robots Destroyed (75) 375 Value Destroyed (3400) 3400 Prototype IDs (5) 100 Alien Tech Used (0) 0 Bonus (921) 921 TOTAL SCORE: 6996 Bonus ------- High Alert Combat Kills 221 Entered Garrisons 200 Used RIF Installer 500 Cogmind --------- Core Integrity 0/550 Matter 291/300 Energy 300/300 System Corruption 0% Temperature Cool (0) Movement Treading (160) Location -8/Materials Parts ------- > --- POWER (1) -------- (None) > --- PROPULSION (3) --- Light Treads > --- UTILITY (5) ------ Compact Battery Relay Coupler [Swarmer] (24) Relay Coupler [Sentry] (10) > --- WEAPON (2) ------- (None) > --- INVENTORY (5) ---- Light Nuclear Core Relay Coupler [Hunter] (13) Relay Coupler [Heavy] (13) Remote Datajack Peak State ------------ > --- POWER ------------ Light Angular Momentum Engine > --- PROPULSION ------- Light Treads Improved Treads Improved Treads > --- UTILITY ---------- Improved Heat Sink Large Storage Unit Compact Battery Improved Light Armor Plating Relay Coupler [Sentry] > --- WEAPON ----------- Shock Rifle Particle Gun > --- INVENTORY -------- Cooled Ion Engine Light Nuclear Core Light Nuclear Core Light Treads Light Treads Improved Heat Sink Relay Coupler [NC] Relay Coupler [Swarmer] Relay Coupler [Hunter] Relay Coupler [Heavy] Particle Gun Remote Datajack Remote Datajack Axe [Rating: 33] Favorites ----------- Power Cooled Ion Engine Engine Cooled Ion Engine Power Core Micro Nuclear Core Propulsion Light Treads Treads Light Treads Leg Aluminum Leg Hover Unit Gravmag System Utility Large Storage Unit Device Improved Heat Sink Storage Large Storage Unit Processor Signal Interpreter Hackware Relay Coupler [Sentry] Protection Improved Propulsion Shielding Weapon Heavy Assault Rifle Energy Gun Beam Rifle Energy Cannon Advanced Beam Cannon Ballistic Gun Heavy Assault Rifle Launcher Grenade Launcher Special Weapon Remote Datajack Slashing Weapon Katana Special Melee Weapon Datajack Build | -11 -10 -10 -9 -9 -9 -8 ------- Run | Yrd Mat Min Mat Sto Gar Mat Slots Evolved 4 | . . . 2 . . 2 Power . | . . . . . . . Propulsion 1 | . . . 1 . . . Utility 3 | . . . 1 . . 2 Weapon . | . . . . . . . Parts Attached 69 | 7 4 7 1 13 16 21 Power 9 | 1 . 1 . 3 2 2 Engine 8 | 1 . 1 . 3 1 2 Core 1 | . . . . . 1 . Reactor . | . . . . . . . Propulsion 22 | 2 . 4 . 5 6 5 Treads 16 | 2 . . . 5 4 5 Leg 4 | . . 4 . . . . Wheel . | . . . . . . . Hover 2 | . . . . . 2 . Flight . | . . . . . . . Utility 13 | 1 1 . 1 1 3 6 Device 4 | . 1 . . . 2 1 Storage 3 | 1 . . . 1 . 1 Processor 1 | . . . 1 . . . Hackware 2 | . . . . . . 2 Protection 3 | . . . . . 1 2 Artifact . | . . . . . . . Weapon 25 | 3 3 2 . 4 5 8 Energy Gun 9 | 1 . 1 . 1 . 6 Energy Cannon 2 | . . . . 1 1 . Ballistic Gun 6 | 2 1 1 . . 2 . Ballistic Cannon . | . . . . . . . Launcher 2 | . 1 . . . 1 . Special Weapon 3 | . . . . 1 1 1 Impact Weapon . | . . . . . . . Slashing Weapon 2 | . . . . 1 . 1 Piercing Weapon . | . . . . . . . Special Melee Weapon 1 | . 1 . . . . . Unidentified Prototypes 3 | . . . . 3 . . Parts Lost 36 | . . 4 . 4 10 18 Power 4 | . . . . 1 1 2 Propulsion 12 | . . 1 . 2 3 6 Utility 7 | . . . . 1 2 4 Weapon 13 | . . 3 . . 4 6 Highest Loss Streak 9 | . . 2 . 1 3 9 To Critical Strikes . | . . . . . . . Average Backups 11 | 3 7 6 7 11 14 13 Power 1 | . 1 . . 1 1 1 Propulsion 4 | 1 2 2 4 4 5 3 Utility 2 | . . 1 . . 3 4 Weapon 2 | 1 2 1 2 4 2 1 Tool/Special . | . . . . . . . Unused Backups 9 | 1 1 . . . 1 6 Power 2 | . . . . . . 2 Propulsion 2 | 1 1 . . . . . Utility 4 | . . . . . 1 3 Weapon 1 | . . . . . . 1 Tool/Special . | . . . . . . . Average Slot Usage (%) 90 | . 90 99 88 94 93 79 Engine 8 | . 14 14 11 10 6 2 Core 2 | . . . . . 4 5 Treads 21 | . 28 7 . 24 25 22 Leg 4 | . . 20 22 6 . . Hover 1 | . . . . . 4 . Device 8 | . 5 14 11 1 10 9 Storage 14 | . 14 14 11 18 16 11 Processor 3 | . . . 11 11 3 . Hackware 1 | . . . . . . 7 Protection 1 | . . . . . 2 3 Energy Gun 3 | . 1 4 11 6 . 6 Energy Cannon 3 | . . . . 5 4 5 Ballistic Gun 11 | . 20 22 11 5 12 . Launcher 1 | . 5 . . . . . Special Weapon 1 | . . . . 1 . 4 Peak Build Rating 33 | 6 7 13 14 17 27 33 Average Rating 16 | 4 6 7 14 15 18 26 On Entrance 11 | . 6 7 13 14 17 23 Naked Turns . | . . . . . . . Heaviest Build 49 | 14 16 15 15 40 41 49 Greatest Support 66 | 40 40 40 30 60 66 66 Greatest Overweight (x) 9 | . . . . 1 2 9 Average Overweight (x) . | . . . . . . . Largest Inventory Capacity 15 | 8 8 8 8 15 15 15 Average Capacity 12 | 6 8 8 8 12 15 14 Most Carried 15 | 5 8 8 7 15 15 15 Average Carried 11 | 3 7 6 7 11 14 13 Final Capacity 15 | 8 8 8 8 15 15 5 Final Carried 15 | 4 8 8 7 15 12 4 Class Distribution -------------------- 47% | Mutant 29% | Scavenger-Mutant 22% | Bothacker-Mutant Dominant Class ---------------- Mutant | -10/Materials Mutant | -10/Mines Scavenger-Mutant | -9/Materials Scavenger-Mutant | -9/Storage Mutant | -9/Garrison Bothacker-Mutant | -8/Materials Resources | -11 -10 -10 -9 -9 -9 -8 ----------- Run | Yrd Mat Min Mat Sto Gar Mat Matter Collected 1580 | 235 229 240 10 186 405 275 Remotely . | . . . . . . . Salvage Created 2800 | . 235 314 . 618 812 821 Parts 152 | . 22 20 . 30 48 32 Haulers Intercepted 3 | . . . . 3 . . Recyclers Shooed 2 | . 1 1 . . . . Parts Field Recycled . | . . . . . . . Retrieved Matter . | . . . . . . . Parts Self-Destructed . | . . . . . . . Prevented . | . . . . . . . Kills | -11 -10 -10 -9 -9 -9 -8 ------- Run | Yrd Mat Min Mat Sto Gar Mat Combat Hostiles Destroyed 62 | . 8 9 . 9 21 15 Guns 34 | . 1 8 . 4 13 8 Cannons 16 | . . . . 5 5 6 AOE 11 | . 7 1 . . 3 . Classes Destroyed 12 | . 6 2 . 2 1 1 Worker 3 | . 1 . . . . 2 Builder 1 | . . 1 . . . . Hauler 3 | . . . . 3 . . Recycler 1 | . 1 . . . . . Operator 1 | . 1 . . . . . Watcher 4 | . 1 . . 2 . 1 Swarmer 13 | . 6 3 . . 3 1 Grunt 32 | . 2 4 . 3 12 11 Duelist 1 | . . . . 1 . . Sentry 10 | . . 2 . 5 2 1 Specialist 2 | . . . . . . 2 Programmer 4 | . . . . . 4 . Best Kill Streak 6 | . 6 3 . 4 4 5 Combat Bots Only 5 | . 5 3 . 3 4 4 Max Kills in Single Turn 3 | . 3 1 . 1 3 1 Gunslinging . | . . . . . . . Exploded 3 | . 3 1 . . 3 . Melee . | . . . . . . . Uniques/NPCs Destroyed . | . . . . . . . Combat | -11 -10 -10 -9 -9 -9 -8 -------- Run | Yrd Mat Min Mat Sto Gar Mat Hostile Shots Fired 512 | . 31 61 . 63 89 268 Missed 130 | . 5 21 . 20 18 66 Hits 382 | . 26 40 . 43 71 202 Melee 3 | . . . . 3 . . Projectile 379 | . 26 40 . 40 71 202 AOE 3 | . . 3 . . . . Critical Strikes 11 | . 1 2 . 2 3 3 Actively Blocked 1 | . . . . . 1 . Damage Taken 5980 | . 282 744 . 698 1416 2840 Core 850 | . 15 63 . 119 95 558 Absorbed by Shields . | . . . . . . . Redirected to Shielding 103 | . . . . . 103 . Core Remaining (%) 71 | 100 . 68 . . 46 . Volleys Fired 222 | . 23 30 2 39 53 75 Largest 2 | . 2 2 2 2 2 2 Hottest 133 | . 70 79 79 88 91 133 Shots Fired 389 | . 38 55 4 70 92 130 Gun 284 | . 32 51 4 40 65 92 Cannon 77 | . . . . 19 25 33 Launcher 12 | . 6 4 . . 2 . Special 16 | . . . . 11 . 5 Kinetic 163 | . 31 45 2 20 65 . Thermal 177 | . 1 6 2 50 25 93 Explosive 12 | . 6 4 . . 2 . Electromagnetic 32 | . . . . . . 32 Robot Hit Streak 21 | . 6 21 1 12 12 19 Robot Miss Streak 4 | . 4 2 2 2 3 3 Penetration Max . | . . . . . . . Secondary Targets 4 | . 1 2 . 1 . . Max Gunslinging Chain 1 | . 1 1 . 1 . . Shots Hit Robots 248 | . 20 44 1 53 47 83 Core Hits 120 | . 18 16 . 20 29 37 Critical Kills . | . . . . . . . Critical Parts Destroyed . | . . . . . . . Critical Strikes 2 | . . . . 1 . 1 Burn 1 | . . . . 1 . . Corrupt 1 | . . . . . . 1 Melee Attacks 11 | . 2 . . . 5 4 Impact . | . . . . . . . Slashing 9 | . . . . . 5 4 Piercing . | . . . . . . . Sneak Attacks 2 | . 2 . . . . . Combat Hostiles . | . . . . . . . Follow-up Attacks . | . . . . . . . Damage Inflicted 4692 | . 554 676 15 863 996 1588 Guns 2730 | . 176 447 15 444 593 1055 Cannons 1129 | . . . . 351 249 529 Explosions 745 | . 372 219 . . 154 . Melee . | . . . . . . . Ramming 20 | . 6 10 . . . 4 Kinetic 1333 | . 164 362 15 199 593 . Thermal 2276 | . 70 85 . 664 249 1208 Explosive 687 | . 314 219 . . 154 . Electromagnetic 376 | . . . . . . 376 Impact . | . . . . . . . Slashing . | . . . . . . . Piercing . | . . . . . . . Highest Corruption 10 | . . . . 1 10 . Average Corruption 5 | . . . . 1 6 . Corruption Purged . | . . . . . . . Corruption Blocked . | . . . . . . . Effects 30 | . . . . 2 28 . Message Errors 4 | . . . . . 4 . Matter Fused 8 | . . . . . 8 . Heat Flow Errors 6 | . . . . . 6 . Energy Discharges 2 | . . . . . 2 . Parts Rejected 1 | . . . . . 1 . Data Loss (minor) 2 | . . . . . 2 . Data Loss (major) 2 | . . . . 1 1 . Misfires 3 | . . . . 1 2 . Alerts 1 | . . . . . 1 . Weapon Failures 1 | . . . . . 1 . Overload Shots . | . . . . . . . Overflow Damage 47 | . 2 17 . . 28 . Projectiles . | . . . . . . . Explosions 47 | . 2 17 . . 28 . Melee . | . . . . . . . Knockbacks . | . . . . . . . Impact . | . . . . . . . Kinetic . | . . . . . . . Secondary . | . . . . . . . Self-Inflicted Damage 383 | . 39 66 . . 278 . Shots 6 | . 1 3 . . 2 . Rammed 11 | . 3 . . . . 8 Targets Rammed 13 | . 3 2 . . . 8 Kicked 2 | . . 2 . . . . Crushed . | . . . . . . . Highest Temperature 442 | . 10 102 18 135 263 442 Average Temperature 84 | . 6 28 10 31 90 124 Received Heat Transfer 1959 | . 48 258 . 225 213 1215 Effects 2 | . . . . . . 2 Interference 1 | . . . . . . 1 Short Circuit 1 | . . . . . . 1 Siege Activations . | . . . . . . . Martial Activations . | . . . . . . . Shielding Activations . | . . . . . . . Robots Disrupted . | . . . . . . . Combat Hostiles . | . . . . . . . Robots Corrupted 1 | . . . . . . 1 Combat Hostiles 1 | . . . . . . 1 Parts Fried 2 | . . . . . . 2 Impact Corruptions . | . . . . . . . Robots Melted . | . . . . . . . Combat Hostiles . | . . . . . . . Parts Melted 9 | . . . . 3 2 4 Heat Transferred 4749 | . 87 222 . 1554 407 2479 Parts Sabotaged . | . . . . . . . Parts Stolen . | . . . . . . . Parts Stripped . | . . . . . . . Power Chain Reactions . | . . . . . . . Alert | -11 -10 -10 -9 -9 -9 -8 ------- Run | Yrd Mat Min Mat Sto Gar Mat Maximum Alert Level 3 | . . . . . 3 2 Low Security (%) 50 | 100 100 100 100 100 13 . Level 1 17 | . . . . . 15 56 Level 2 28 | . . . . . 58 43 Level 3 3 | . . . . . 11 . Level 4 . | . . . . . . . Level 5 . | . . . . . . . High Security . | . . . . . . . Max Security . | . . . . . . . Peak Influence 939 | . 193 139 21 87 939 457 Initial 457 | . . 62 14 . 48 457 Average 266 | . 78 71 8 35 477 385 Influence Increases 2349 | . 342 247 7 308 991 454 Destroy 0b10 Robot/C 1240 | . 160 180 . 180 420 300 Destroy 0b10 Robot/NC 65 | . 20 5 . 25 . 15 Destroy Leader 184 | . 32 30 . 70 . 52 Allied During Kill 1 | . . . . . . 1 Successful Hack 36 | . 5 . 7 17 . 7 Disable Machine 60 | . 45 . . 15 . . Anti-Garrison Action 400 | . . . . . 400 . Destroy Structure 228 | . 80 17 . 1 126 4 Lose Combat Pursuer 135 | . . 15 . . 45 75 Influence Decreases 2000 | . 181 369 46 233 127 1044 Entered New Map 633 | . . 99 25 . 27 482 Time Decay 1007 | . 181 230 21 213 . 362 Lost Part 340 | . . 40 . 20 100 180 Lost Ally 20 | . . . . . . 20 Squads Dispatched 6 | . 1 . 1 . . 4 Investigation 1 | . . . . . . 1 Extermination . | . . . . . . . Reinforcement 5 | . 1 . 1 . . 3 Assault . | . . . . . . . Garrison . | . . . . . . . Intercept . | . . . . . . . Searches Triggered . | . . . . . . . Construction Impeded . | . . . . . . . Haulers Reinforced . | . . . . . . . Active Scanning Responses . | . . . . . . . Cargo Convoy Interrupts . | . . . . . . . Stealth | -11 -10 -10 -9 -9 -9 -8 --------- Run | Yrd Mat Min Mat Sto Gar Mat Distress Signals 8 | . 1 . . 1 . 6 Communications Jammed . | . . . . . . . Distress Signals . | . . . . . . . Times Spotted 103 | . 15 12 1 12 22 41 Peak Tracking Total 8 | . 6 3 1 4 4 8 Tactical Retreats 6 | . . 1 . . 1 4 Traps | -11 -10 -10 -9 -9 -9 -8 ------- Run | Yrd Mat Min Mat Sto Gar Mat Traps Triggered 5 | . . . . 2 2 1 Indirectly . | . . . . . . . Trap Hack Attempts . | . . . . . . . Triggered . | . . . . . . . Disarmed . | . . . . . . . Reprogrammed . | . . . . . . . Reused . | . . . . . . . Traps Extracted . | . . . . . . . Installed . | . . . . . . . Triggered . | . . . . . . . Machines | -11 -10 -10 -9 -9 -9 -8 ---------- Run | Yrd Mat Min Mat Sto Gar Mat Machines Disabled 11 | . 3 . . 1 7 . Max in Single Turn 2 | . 2 . . 1 2 . Garrison Access 1 | . . . . . . 1 Garrison Relay 3 | . . . . . 3 . Phase Generator 1 | . . . . . 1 . Machines Repaired . | . . . . . . . Machines Dismantled 1 | . . . . 1 . . Machines Sabotaged . | . . . . . . . Overloaded Fab Kills . | . . . . . . . Hacking | -11 -10 -10 -9 -9 -9 -8 --------- Run | Yrd Mat Min Mat Sto Gar Mat Machines Accessed 11 | . 2 . 1 3 3 2 Terminals 9 | . 2 . 1 2 3 1 Fabricators . | . . . . . . . Repair Stations . | . . . . . . . Recycling Units . | . . . . . . . Scanalyzers . | . . . . . . . Garrison Access 2 | . . . . 1 . 1 Total Hacks 24 | . 6 . 2 8 6 2 Successful 12 | . 4 . 1 4 1 2 Failed 12 | . 2 . 1 4 5 . Catastrophic 4 | . . . 1 2 1 . Database Lockouts . | . . . . . . . Manual . | . . . . . . . Terminals 22 | . 6 . 2 7 6 1 Fabricators . | . . . . . . . Repair Stations . | . . . . . . . Recycling Units . | . . . . . . . Scanalyzers . | . . . . . . . Garrison Access 2 | . . . . 1 . 1 Terminal Hacks 10 | . 4 . 1 3 1 1 Prototype ID Bank 1 | . 1 . . . . . Branch Access Points 2 | . . . 1 . . 1 Emergency Access Points 1 | . . . . 1 . . Scanalyzer Index 1 | . 1 . . . . . Locate Traps 1 | . . . . 1 . . Transport Status 1 | . 1 . . . . . Hauler Manifests 1 | . 1 . . . . . Zone Layout 1 | . . . . 1 . . Garrison Registry 1 | . . . . . 1 . Fabricator Hacks . | . . . . . . . Repair Station Hacks . | . . . . . . . Recycling Unit Hacks . | . . . . . . . Scanalyzer . | . . . . . . . Garrison Access Hacks 2 | . . . . 1 . 1 Unlock Access 1 | . . . . 1 . . Seal Access 1 | . . . . . . 1 Unauthorized Hacks . | . . . . . . . Terminals . | . . . . . . . Fabricators . | . . . . . . . Repair Stations . | . . . . . . . Recycling Units . | . . . . . . . Scanalyzers . | . . . . . . . Garrison Access . | . . . . . . . Data Cores Recovered 1 | . 1 . . . . . Used . | . . . . . . . Hacking Detections 9 | . 2 . 1 3 3 . Full Trace Events 1 | . . . . . 1 . Feedback Events . | . . . . . . . Feedback Blocked . | . . . . . . . Robot Schematics Acquired . | . . . . . . . Robots Built . | . . . . . . . Authchips . | . . . . . . . Time . | . . . . . . . Total Robot Build Rating . | . . . . . . . Part Schematics Acquired . | . . . . . . . Parts Built . | . . . . . . . Authchips . | . . . . . . . Time . | . . . . . . . Total Part Build Rating . | . . . . . . . Parts Repaired . | . . . . . . . Time . | . . . . . . . Parts Recycled . | . . . . . . . Recycled Matter . | . . . . . . . Retrieved Matter . | . . . . . . . Retrieved Components . | . . . . . . . Parts Scanalyzed . | . . . . . . . Part Schematics Acquired . | . . . . . . . Parts Damaged . | . . . . . . . Bothacking | -11 -10 -10 -9 -9 -9 -8 ------------ Run | Yrd Mat Min Mat Sto Gar Mat Used RIF Installer 1 | . . . . . 1 . Robots Hacked 4 | . 1 . . . . 3 Non-combat 1 | . 1 . . . . . Combat 3 | . . . . . . 3 Robot Hacks Applied 6 | . 2 . . . . 4 parse_system 3 | . 1 . . . . 2 find_recycling 1 | . 1 . . . . . overwrite_iff 2 | . . . . . . 2 Relay Couplers Released 14 | . . . . . 14 . Machine Destruction 11 | . . . . . 11 . Programmers 3 | . . . . . 3 . Attached 2 | . . . . . . 2 Fabnet Peak Effective % . | . . . . . . . Robots Rewired . | . . . . . . . Allies Hacked . | . . . . . . . Hacks Repelled . | . . . . . . . Allies | -11 -10 -10 -9 -9 -9 -8 -------- Run | Yrd Mat Min Mat Sto Gar Mat Total Allies 2 | . . . . . . 2 Largest Group 1 | . . . . . . 1 Highest-Rated Group 15 | . . . . . . 15 Highest-Rated Ally 15 | . . . . . . 15 Total Orders . | . . . . . . . Ally Attacks 5 | . . . . . . 5 Total Damage 87 | . . . . . . 87 Kills . | . . . . . . . Allies Corrupted . | . . . . . . . Allies Melted . | . . . . . . . Intel | -11 -10 -10 -9 -9 -9 -8 ------- Run | Yrd Mat Min Mat Sto Gar Mat Active Infowar (turns) 847 | . 211 519 61 56 . . Sensors 847 | . 211 519 61 56 . . Robot Analysis Total . | . . . . . . . Derelict Logs Recovered 1 | . . 1 . . . . Drone Launches . | . . . . . . . Drone Recoveries . | . . . . . . . Exploration | -11 -10 -10 -9 -9 -9 -8 ------------- Run | Yrd Mat Min Mat Sto Gar Mat Turns Passed 3903 | 90 537 519 61 567 1301 828 Spaces Moved 1773 | 49 282 243 46 227 606 320 Core 29 | 6 . . . . . 23 Treads 1252 | 43 282 53 . 167 410 297 Legs 296 | . . 190 46 60 . . Wheels . | . . . . . . . Hover 196 | . . . . . 196 . Flight . | . . . . . . . Fastest Speed 50 | 50 160 120 120 120 136 100 Average Speed 156 | 146 160 128 120 150 166 166 Slowest Speed 500 | 160 160 160 120 190 220 500 Overloaded Moves . | . . . . . . . Propulsion Burnouts . | . . . . . . . Robots Hopped . | . . . . . . . Potential Cave-ins 6 | . . . . . 6 . Cave-ins Triggered 1 | . . . . . 1 . Exploration Rate (%) 34 | 4 42 45 5 38 72 35 Regions Visited 6 Branch Regions 2 Pre-discovered Areas . | . . . . . . . Known Exits Taken 2 | . . . 1 1 . . Unknown Exits Taken 3 | 1 1 1 . . . . Scrap Searched . | . . . . . . . Spaces Dug 14 | . 5 . . . 5 4 Terrain Destroyed 281 | . 91 22 . . 164 4 Melee 9 | . . . . . 5 4 Projectile . | . . . . . . . AOE 272 | . 91 22 . . 159 . Terrain Rammed . | . . . . . . . Walls Destroyed . | . . . . . . . Machines Disabled . | . . . . . . . Actions | -11 -10 -10 -9 -9 -9 -8 --------- Run | Yrd Mat Min Mat Sto Gar Mat Total 2469 | 67 325 398 48 364 798 469 Wait 268 | . . 105 . 52 93 18 Move 1766 | 48 281 242 45 226 604 320 Hop . | . . . . . . . Pick Up 61 | 11 5 5 . 18 12 10 Fast Attach 13 | . 1 . . 4 3 5 Attach 31 | 6 . 4 1 2 9 9 Detach . | . . . . . . . Swap 47 | 1 9 7 . 8 9 13 Drop 31 | 1 1 3 . 10 9 7 Fire 222 | . 23 30 2 39 53 75 Melee 11 | . 2 . . . 5 4 Ram 1 | . . . . . . 1 Kick 2 | . . 2 . . . . Crush 10 | . 3 . . . . 7 Escape Stasis 1 | . . . . . 1 . Rewire . | . . . . . . . Trap . | . . . . . . . Miscellaneous 5 | . . . . 5 . . Route ------- -11/Scrapyard -10/Materials -10/Mines (discovered 2 exits: *Mat x2) -9/Materials (discovered 4 exits: Min x2 / *Sto x2) -9/Storage -9/Garrison (discovered 3 exits: *Mat x3) -8/Materials History --------- Turn | Location | Event 14 | -11/Scrapyard | Discovered new exit (range 15) 91 | -11/Scrapyard | Entered Materials 308 | -10/Materials | Build established: Mutant 569 | -10/Materials | Discovered new exit (range 14) 628 | -10/Materials | Entered Mines 710 | -10/Mines | Met a Derelict bent on vengeance 731 | -10/Mines | Discovered new exit (range 5) 1076 | -10/Mines | Discovered new exit (range 11) 1077 | -10/Mines | Learned Materials garrison access intel 1147 | -10/Mines | Entered Materials 1147 | -9/Materials | Evolved 2 slots: Propulsion x1, Utility x1 1148 | -9/Materials | Discovered new exit (range 7) 1165 | -9/Materials | Identified exit to Mines 1165 | -9/Materials | Identified exit to Storage 1208 | -9/Materials | Entered Storage 1405 | -9/Storage | Build established: Scavenger-Mutant 1769 | -9/Storage | Identified exit to Garrison 1775 | -9/Storage | Entered Garrison 1833 | -9/Garrison | Triggered checkpoint 1857 | -9/Garrison | Garrison Relay disabled 1951 | -9/Garrison | Triggered checkpoint 2070 | -9/Garrison | Phase Generator disabled 2082 | -9/Garrison | Discovered new exit (range 38) 2082 | -9/Garrison | Discovered new exit (range 59) 2082 | -9/Garrison | Discovered new exit (range 78) 2183 | -9/Garrison | Crushed by falling debris 2433 | -9/Garrison | Triggered checkpoint 2473 | -9/Garrison | Build established: Mutant 2481 | -9/Garrison | Garrison Relay disabled 2586 | -9/Garrison | Lost 3 parts (1p1n1u) 2649 | -9/Garrison | Triggered checkpoint 2749 | -9/Garrison | System corruption reached 10% 2776 | -9/Garrison | Lost 3 parts (1n2w) 2863 | -9/Garrison | Build established: Scavenger-Mutant 2941 | -9/Garrison | Triggered checkpoint 2966 | -9/Garrison | Garrison Relay disabled 3016 | -9/Garrison | Core integrity fell below 50% 3030 | -9/Garrison | Installed Relay Interface Framework 3076 | -9/Garrison | Entered Materials 3076 | -8/Materials | Evolved 2 slots: Utility x2 3077 | -8/Materials | Loaded intel: 1 garrison access location 3343 | -8/Materials | Build established: Bothacker-Mutant 3582 | -8/Materials | Lost 3 parts (2n1w) 3736 | -8/Materials | Lost 3 parts (1p1n1u) 3823 | -8/Materials | Core integrity fell below 50% 3876 | -8/Materials | Core integrity fell below 20% 3904 | -8/Materials | Destroyed by S-10 Pest with Light Assault Rifle Last Messages --------------- 03828_ Slammed into U-05 Engineer. 03832_ G-47 Trooper misfires. 03832_ Hvy. Laser destroyed. 03840_ Jacked S-10 Pest... >>parse_system Reading system data... 03842_ Lrg. Storage Unit destroyed. 03844_ Jacked S-10 Pest... >>overwrite_iff Rewriting IFF filter. 03849_ S-10 Pest destroyed. 03849_ Acquired Shock Rifle. 03858_ K-01 Serf collects debris. 03861_ Remote Datajack destroyed. 03863_ R-06 Scavenger collects Flight Unit. 03865_ M-13 Machinist repairs G-47 Trooper. 03875_ M-13 Machinist repairs S-10 Pest. 03884_ Broken Cld. Ion Engine destroyed. 03891_ Shock Rifle destroyed. 03894_ Slammed into S-10 Pest. Map ----- +----------------------------------------------------+ | ?????# # ##????????????????????????? | | ?????# # " #?????????????????????????? | | ?????# + """ #?????????????????????????? | | ?????# # """ #?????????????????????????? | | ?????# # """ #?????????????????????????? | | ?????# ?# "" #########??????#??????????? | | ?????# ?# """ ## #?#?? ???????????? | | ?????# ??# "" ## """ # # ????????????? | | ?????########??# """ ## """ + + ??????????????? | | ???????????????# " ## """ #?????????????????? | | ???????????????# =[/##* [%= # #???????????????? | | ???????????????# *%%%% = / ????????? | | ???????????????# !=#########/#####???????????? | | ???????????????# ![#?????????????????????????? | | ???????????????# #?????????????????????????? | | ???????????????# #?????????????????????????? | | ???????????????# #?????????????????????????? | | ???????????????# #?#######?????????????????? | | ???????????????# # #?????????????????? | | ???????????????# # """""???????????????????? | | ????????????# + """""???????????????????? | | ????????????# ##### # """""???????????????????? | | ????????????# ????# # #?????????????????? | | ????????????# ????# #?#######?????????????????? | | ????????????##########/#####?????????????????????? | | ?????????????????# g s@ #?????????????????????? | | ?????????????????# !!!g #?????????????????????? | | ?????????????????# !! / #?????????????????????? | | ?????????????????# !! #?????????????????????? | | ?????????????????###########?????????????????????? | | | | | | | | | | | | | | | | | | | | | | | | | | | | | | | | | | | | | | | | | +----------------------------------------------------+ Best States ------------- Heat Dissipation 59 Energy Generation 18 Energy Capacity 480 Matter Stores 300 Matter Capacity 300 Sight Range 16 Robot Scan Range 14 Terrain Scan Density 10 Additional Mass Support 6 Armor Coverage 600 Propulsion Shielding 66 Evasion (%) 55 Recoil Reduction 3 Relay Coupler Types 2 Relay Coupler Value 34 Item Schematics ----------------- None Robot Schematics ------------------ None Fabricated ------------ Nothing Repaired ---------- Nothing Alien Tech Used ----------------- None Achievements -------------- None Challenges ------------ None Game ------ Seed FluxMinesnifferModule Manual? 0 Play Time 00:35:26 Cumulative 28.4 hours Start 2025.05.29 @ 15:13:58 End 2025.05.29 @ 15:57:51 Sessions 1 Manual Loads 0 Difficulty Rogue Special Mode None Game No. 40 Rogue 40 Adventurer 0 Explorer 0 Win Type - Total 0 Types 0/0/0/0/0/0/0/0/0/0 Lore% 26 Gallery% 31 Achievement% 26 Wizard Run 0 Options --------- Layout 0 ASCII 0 Keyboard 0 Movement Mouse Keybinds 0 Fullscreen 1 Font 18/SmallcapsGlow Map View 76x50 Zoom Use 0% Tactical HUD 1 Map Filters NONE Filters NONE Steam 1 RUN: c08f11c2-824b-4a56-a3b2-051684dfa68a